[Event "Titled Tuesday Blitz May 31 Early 2022"]
[White "Korchmar, Vasiliy"]
[Black "Nasir, Zehn"]
[WhiteFideId "24131750"]
[BlackFideId "2613239"]
[WhiteElo "2370"]
[BlackElo "1993"]
[Result "1/2-1/2"]
[Round "11"]
[TimeControl "180+1"]
[Date "2022.05.31"]
[WhiteClock "0:00:10"]
[BlackClock "0:00:41"]

1. e4 {[%clk 0:02:51]}  c6 {[%clk 0:03:00]} 2. d4 {[%clk 0:02:48]}  d5 {[%clk 0:03:00]} 3. e5 {[%clk 0:02:48]}  Bf5 {[%clk 0:03:00]} 4. c4 {[%clk 0:02:48]}  e6 {[%clk 0:03:00]} 5. Nc3 {[%clk 0:02:48]}  Nd7 {[%clk 0:02:58]} 6. cxd5 {[%clk 0:02:47]}  cxd5 {[%clk 0:02:58]} 7. h4 {[%clk 0:02:46]}  h5 {[%clk 0:02:54]} 8. Nge2 {[%clk 0:02:28]}  Ne7 {[%clk 0:02:45]} 9. Ng3 {[%clk 0:02:28]}  Bg6 {[%clk 0:02:45]} 10. Bd3 {[%clk 0:02:25]}  Bxd3 {[%clk 0:02:33]} 11. Qxd3 {[%clk 0:02:26]}  Ng6 {[%clk 0:02:32]} 12. Bg5 {[%clk 0:02:00]}  Qb6 {[%clk 0:02:23]} 13. f4 {[%clk 0:01:51]}  Rc8 {[%clk 0:01:43]} 14. O-O {[%clk 0:01:41]}  Be7 {[%clk 0:01:40]} 15. Bxe7 {[%clk 0:01:29]}  Nxe7 {[%clk 0:01:36]} 16. Nb5 {[%clk 0:01:29]}  O-O {[%clk 0:01:10]} 17. Nd6 {[%clk 0:01:26]}  g6 {[%clk 0:00:59]} 18. Nxc8 {[%clk 0:01:25]}  Rxc8 {[%clk 0:01:00]} 19. Rfc1 {[%clk 0:01:07]}  Nc6 {[%clk 0:00:57]} 20. Ne2 {[%clk 0:01:01]}  Qd8 {[%clk 0:00:55]} 21. g3 {[%clk 0:01:00]}  Nb6 {[%clk 0:00:55]} 22. Rc3 {[%clk 0:00:53]}  Na4 {[%clk 0:00:46]} 23. Rc2 {[%clk 0:00:51]}  Kg7 {[%clk 0:00:38]} 24. Rac1 {[%clk 0:00:49]}  Qe7 {[%clk 0:00:30]} 25. Qb5 {[%clk 0:00:44]}  Nb6 {[%clk 0:00:29]} 26. Qc5 {[%clk 0:00:38]}  Qd7 {[%clk 0:00:24]} 27. Qb5 {[%clk 0:00:29]}  Qe7 {[%clk 0:00:22]} 28. Rc5 {[%clk 0:00:26]}  Nc4 {[%clk 0:00:19]} 29. b3 {[%clk 0:00:25]}  Nb6 {[%clk 0:00:18]} 30. Qd3 {[%clk 0:00:19]}  Nb4 {[%clk 0:00:16]} 31. Qd2 {[%clk 0:00:18]}  Nc6 {[%clk 0:00:16]} 32. a3 {[%clk 0:00:17]}  Qd7 {[%clk 0:00:14]} 33. Kg2 {[%clk 0:00:17]}  Qe7 {[%clk 0:00:14]} 34. Kh2 {[%clk 0:00:17]}  Qd7 {[%clk 0:00:14]} 35. Ng1 {[%clk 0:00:17]}  Rb8 {[%clk 0:00:12]} 36. Nf3 {[%clk 0:00:18]}  Rc8 {[%clk 0:00:11]} 37. Ng5 {[%clk 0:00:19]}  Qe7 {[%clk 0:00:11]} 38. Qd3 {[%clk 0:00:18]}  Qd7 {[%clk 0:00:10]} 39. Qd2 {[%clk 0:00:18]}  Qe7 {[%clk 0:00:11]} 40. a4 {[%clk 0:00:19]}  Rb8 {[%clk 0:00:09]} 41. a5 {[%clk 0:00:19]}  Nd7 {[%clk 0:00:08]} 42. Rb5 {[%clk 0:00:17]}  a6 {[%clk 0:00:07]} 43. Rb6 {[%clk 0:00:17]}  Nxb6 {[%clk 0:00:07]} 44. axb6 {[%clk 0:00:18]}  Qb4 {[%clk 0:00:06]} 45. Qxb4 {[%clk 0:00:18]}  Nxb4 {[%clk 0:00:07]} 46. Rc7 {[%clk 0:00:19]}  Nd3 {[%clk 0:00:04]} 47. Rxf7+ {[%clk 0:00:18]}  Kg8 {[%clk 0:00:05]} 48. Rc7 {[%clk 0:00:18]}  Nf2 {[%clk 0:00:04]} 49. Nxe6 {[%clk 0:00:18]}  Ne4 {[%clk 0:00:03]} 50. Nc5 {[%clk 0:00:15]}  Nd2 {[%clk 0:00:03]} 51. Rxb7 {[%clk 0:00:14]}  Rxb7 {[%clk 0:00:01]} 52. Nxb7 {[%clk 0:00:15]}  Nxb3 {[%clk 0:00:02]} 53. Nc5 {[%clk 0:00:16]}  Na5 {[%clk 0:00:02]} 54. b7 {[%clk 0:00:16]}  Nc6 {[%clk 0:00:02]} 55. Nxa6 {[%clk 0:00:15]}  Kf7 {[%clk 0:00:02]} 56. b8=Q {[%clk 0:00:16]}  Nxb8 {[%clk 0:00:03]} 57. Nxb8 {[%clk 0:00:17]}  Ke6 {[%clk 0:00:04]} 58. Na6 {[%clk 0:00:17]}  Kf5 {[%clk 0:00:05]} 59. Nb4 {[%clk 0:00:18]}  Kg4 {[%clk 0:00:06]} 60. e6 {[%clk 0:00:18]}  g5 {[%clk 0:00:07]} 61. e7 {[%clk 0:00:17]}  gxh4 {[%clk 0:00:05]} 62. e8=Q {[%clk 0:00:18]}  h3 {[%clk 0:00:05]} 63. Qg6+ {[%clk 0:00:16]}  Kf3 {[%clk 0:00:06]} 64. Qxh5+ {[%clk 0:00:16]}  Ke3 {[%clk 0:00:06]} 65. Kxh3 {[%clk 0:00:16]}  Kxd4 {[%clk 0:00:07]} 66. Qxd5+ {[%clk 0:00:15]}  Ke3 {[%clk 0:00:08]} 67. f5 {[%clk 0:00:14]}  Kf2 {[%clk 0:00:09]} 68. g4 {[%clk 0:00:15]}  Ke3 {[%clk 0:00:10]} 69. g5 {[%clk 0:00:15]}  Kf2 {[%clk 0:00:11]} 70. f6 {[%clk 0:00:15]}  Ke3 {[%clk 0:00:12]} 71. f7 {[%clk 0:00:15]}  Kf2 {[%clk 0:00:12]} 72. g6 {[%clk 0:00:15]}  Ke2 {[%clk 0:00:13]} 73. g7 {[%clk 0:00:16]}  Ke3 {[%clk 0:00:14]} 74. Nc6 {[%clk 0:00:15]}  Ke2 {[%clk 0:00:15]} 75. Na5 {[%clk 0:00:15]}  Ke3 {[%clk 0:00:16]} 76. Nc4+ {[%clk 0:00:16]}  Ke2 {[%clk 0:00:17]} 77. Nb6 {[%clk 0:00:16]}  Ke1 {[%clk 0:00:18]} 78. Na8 {[%clk 0:00:17]}  Ke2 {[%clk 0:00:18]} 79. Qd8 {[%clk 0:00:17]}  Ke1 {[%clk 0:00:19]} 80. Kg4 {[%clk 0:00:17]}  Ke2 {[%clk 0:00:20]} 81. Kf5 {[%clk 0:00:18]}  Ke1 {[%clk 0:00:21]} 82. Ke6 {[%clk 0:00:18]}  Ke2 {[%clk 0:00:22]} 83. Kd7 {[%clk 0:00:19]}  Ke1 {[%clk 0:00:23]} 84. Kc8 {[%clk 0:00:20]}  Ke2 {[%clk 0:00:23]} 85. Kb8 {[%clk 0:00:20]}  Ke3 {[%clk 0:00:24]} 86. f8=Q {[%clk 0:00:21]}  Ke4 {[%clk 0:00:25]} 87. g8=Q {[%clk 0:00:21]}  Ke5 {[%clk 0:00:26]} 88. Qde8+ {[%clk 0:00:20]}  Kd4 {[%clk 0:00:26]} 89. Qef7 {[%clk 0:00:17]}  Kc3 {[%clk 0:00:27]} 90. Qf8g7+ {[%clk 0:00:17]}  Kb4 {[%clk 0:00:28]} 91. Qfg6 {[%clk 0:00:15]}  Kc5 {[%clk 0:00:28]} 92. Kc7 {[%clk 0:00:15]}  Kb5 {[%clk 0:00:29]} 93. Kb8 {[%clk 0:00:12]}  Ka5 {[%clk 0:00:30]} 94. Q7h8 {[%clk 0:00:11]}  Kb5 {[%clk 0:00:31]} 95. Q6h7 {[%clk 0:00:11]}  Kc5 {[%clk 0:00:31]} 96. Nc7 {[%clk 0:00:10]}  Kc6 {[%clk 0:00:31]} 97. Ne6 {[%clk 0:00:10]}  Kd6 {[%clk 0:00:32]} 98. Nf8 {[%clk 0:00:08]}  Kc6 {[%clk 0:00:32]} 99. Ng6 {[%clk 0:00:07]}  Kb6 {[%clk 0:00:33]} 100. Qh8g7 {[%clk 0:00:06]}  Kc6 {[%clk 0:00:34]} 101. Nh8 {[%clk 0:00:06]}  Kc5 {[%clk 0:00:34]} 102. Qgh6 {[%clk 0:00:05]}  Kb4 {[%clk 0:00:33]} 103. Qgg6 {[%clk 0:00:04]}  Kc3 {[%clk 0:00:34]} 104. Qhg5 {[%clk 0:00:04]}  Kc4 {[%clk 0:00:34]} 105. Qhh4+ {[%clk 0:00:04]}  Kc3 {[%clk 0:00:33]} 106. Qe3+ {[%clk 0:00:04]}  Kb2 {[%clk 0:00:33]} 107. Qgg3 {[%clk 0:00:04]}  Kc2 {[%clk 0:00:33]} 108. Qhh3 {[%clk 0:00:04]}  Kb2 {[%clk 0:00:34]} 109. Kc7 {[%clk 0:00:04]}  Kc2 {[%clk 0:00:34]} 110. Kd6 {[%clk 0:00:05]}  Kb2 {[%clk 0:00:35]} 111. Ke5 {[%clk 0:00:06]}  Kc2 {[%clk 0:00:36]} 112. Kf6 {[%clk 0:00:06]}  Kb2 {[%clk 0:00:37]} 113. Nf7 {[%clk 0:00:07]}  Kc2 {[%clk 0:00:37]} 114. Nd6 {[%clk 0:00:08]}  Kb2 {[%clk 0:00:38]} 115. Ne8 {[%clk 0:00:09]}  Kc2 {[%clk 0:00:39]} 116. Nc7 {[%clk 0:00:10]}  Kb2 {[%clk 0:00:40]} 117. Na8 {[%clk 0:00:10]}  Kc2 {[%clk 0:00:41]} 118. Kg7 {[%clk 0:00:11]}  Kb2 {[%clk 0:00:42]} 119. Kh8 {[%clk 0:00:12]}  Kc2 {[%clk 0:00:43]} 120. Qef3 {[%clk 0:00:12]}  Kb2 {[%clk 0:00:44]} 121. Qfg2+ {[%clk 0:00:13]}  Kc1 {[%clk 0:00:44]} 122. Qg3h2 {[%clk 0:00:12]}  Kd1 {[%clk 0:00:44]} 123. Q3g3 {[%clk 0:00:12]}  Kc1 {[%clk 0:00:43]} 124. Q3f2 {[%clk 0:00:12]}  Kb1 {[%clk 0:00:43]} 125. Qe2 {[%clk 0:00:11]}  Kc1 {[%clk 0:00:43]} 126. Qgf2 {[%clk 0:00:12]}  Kb1 {[%clk 0:00:32]} 127. Qhg2 {[%clk 0:00:11]}  Kc1 {[%clk 0:00:33]} 128. Kh7 {[%clk 0:00:10]}  Kb1 {[%clk 0:00:34]} 129. Kh6 {[%clk 0:00:11]}  Ka1 {[%clk 0:00:35]} 130. Kh5 {[%clk 0:00:12]}  Kb1 {[%clk 0:00:36]} 131. Kh4 {[%clk 0:00:12]}  Ka1 {[%clk 0:00:37]} 132. Kh3 {[%clk 0:00:13]}  Kb1 {[%clk 0:00:38]} 133. Kh2 {[%clk 0:00:13]}  Ka1 {[%clk 0:00:39]} 134. Nc7 {[%clk 0:00:11]}  Kb1 {[%clk 0:00:40]} 135. Qd2 {[%clk 0:00:10]}  Ka1 {[%clk 0:00:40]} 136. Qfe2 {[%clk 0:00:10]}  Kb1 {[%clk 0:00:41]} 137. Qgf2 {[%clk 0:00:10]} 1/2-1/2


[Site "https://www.chess.com"]

[Event "Titled Tuesday Blitz May 31 Early 2022"]
[White "Lopez Del Alamo, Antonio"]
[Black "Bethke, Richard"]
[WhiteFideId "2227339"]
[BlackFideId "12959243"]
[WhiteElo "2089"]
[BlackElo "2508"]
[Result "0-1"]
[Round "11"]
[TimeControl "180+1"]
[Date "2022.06.01"]
[WhiteClock "0:00:51"]
[BlackClock "0:00:07"]

1. e4 {[%clk 0:03:00]}  c5 {[%clk 0:02:30]} 2. Nf3 {[%clk 0:02:58]}  d6 {[%clk 0:02:29]} 3. d4 {[%clk 0:02:57]}  cxd4 {[%clk 0:02:30]} 4. Nxd4 {[%clk 0:02:57]}  Nf6 {[%clk 0:02:31]} 5. Nc3 {[%clk 0:02:57]}  a6 {[%clk 0:02:31]} 6. Be2 {[%clk 0:02:57]}  e5 {[%clk 0:02:25]} 7. Nb3 {[%clk 0:02:57]}  Be7 {[%clk 0:02:24]} 8. Be3 {[%clk 0:02:57]}  O-O {[%clk 0:02:24]} 9. g4 {[%clk 0:02:57]}  Nc6 {[%clk 0:02:07]} 10. g5 {[%clk 0:02:56]}  Nd7 {[%clk 0:01:55]} 11. Qd2 {[%clk 0:02:57]}  b5 {[%clk 0:01:49]} 12. O-O-O {[%clk 0:02:55]}  Bb7 {[%clk 0:01:47]} 13. h4 {[%clk 0:02:49]}  b4 {[%clk 0:01:30]} 14. Nd5 {[%clk 0:02:48]}  a5 {[%clk 0:01:29]} 15. Nxe7+ {[%clk 0:02:41]}  Nxe7 {[%clk 0:01:26]} 16. Qxd6 {[%clk 0:02:42]}  a4 {[%clk 0:01:26]} 17. Qxd7 {[%clk 0:02:33]}  Qxd7 {[%clk 0:01:20]} 18. Rxd7 {[%clk 0:02:34]}  axb3 {[%clk 0:01:20]} 19. Rxb7 {[%clk 0:02:18]}  bxa2 {[%clk 0:01:14]} 20. Kd2 {[%clk 0:02:17]}  a1=Q {[%clk 0:00:59]} 21. Rxa1 {[%clk 0:02:16]}  Rxa1 {[%clk 0:01:00]} 22. Rxe7 {[%clk 0:02:15]}  Rb1 {[%clk 0:00:52]} 23. b3 {[%clk 0:02:12]}  Rd8+ {[%clk 0:00:48]} 24. Bd3 {[%clk 0:02:10]}  f6 {[%clk 0:00:37]} 25. Rb7 {[%clk 0:02:00]}  Rh1 {[%clk 0:00:32]} 26. Rxb4 {[%clk 0:01:54]}  Rxh4 {[%clk 0:00:29]} 27. gxf6 {[%clk 0:01:53]}  gxf6 {[%clk 0:00:30]} 28. Kc3 {[%clk 0:01:52]}  Rc8+ {[%clk 0:00:25]} 29. Kb2 {[%clk 0:01:51]}  h5 {[%clk 0:00:19]} 30. Rb7 {[%clk 0:01:50]}  Rh1 {[%clk 0:00:15]} 31. Bc4+ {[%clk 0:01:48]}  Kh8 {[%clk 0:00:14]} 32. Bh6 {[%clk 0:01:46]}  h4 {[%clk 0:00:14]} 33. Bg7+ {[%clk 0:01:46]}  Kh7 {[%clk 0:00:13]} 34. Bxf6+ {[%clk 0:01:46]}  Kg6 {[%clk 0:00:13]} 35. Bxe5 {[%clk 0:01:46]}  h3 {[%clk 0:00:13]} 36. f4 {[%clk 0:01:43]}  h2 {[%clk 0:00:12]} 37. f5+ {[%clk 0:01:43]}  Kh6 {[%clk 0:00:12]} 38. Bd3 {[%clk 0:01:34]}  Re8 {[%clk 0:00:10]} 39. Bxh2 {[%clk 0:01:34]}  Rxh2 {[%clk 0:00:10]} 40. Rb5 {[%clk 0:01:30]}  Kg5 {[%clk 0:00:09]} 41. e5 {[%clk 0:01:30]}  Rd8 {[%clk 0:00:08]} 42. Kc3 {[%clk 0:01:27]}  Rc8+ {[%clk 0:00:08]} 43. Kd4 {[%clk 0:01:26]}  Rh4+ {[%clk 0:00:08]} 44. Be4 {[%clk 0:01:23]}  Rxc2 {[%clk 0:00:06]} 45. e6 {[%clk 0:01:07]}  Kf6 {[%clk 0:00:04]} 46. Re5 {[%clk 0:01:03]}  Rd2+ {[%clk 0:00:03]} 47. Ke3 {[%clk 0:01:02]}  Kxe5 {[%clk 0:00:03]} 48. Kxd2 {[%clk 0:01:01]}  Rxe4 {[%clk 0:00:03]} 49. Kd3 {[%clk 0:00:58]}  Kxf5 {[%clk 0:00:03]} 50. e7 {[%clk 0:00:56]}  Rxe7 {[%clk 0:00:03]} 51. Kd4 {[%clk 0:00:56]}  Ke6 {[%clk 0:00:04]} 52. Kc5 {[%clk 0:00:56]}  Rb7 {[%clk 0:00:04]} 53. b4 {[%clk 0:00:56]}  Kd7 {[%clk 0:00:04]} 54. b5 {[%clk 0:00:55]}  Kc7 {[%clk 0:00:05]} 55. Kb4 {[%clk 0:00:54]}  Kb6 {[%clk 0:00:05]} 56. Ka4 {[%clk 0:00:51]}  Rh7 {[%clk 0:00:06]} 57. Kb4 {[%clk 0:00:51]}  Rh5 {[%clk 0:00:07]} 0-1


[Site "https://www.chess.com"]

[Event "Titled Tuesday Blitz May 31 Early 2022"]
[White "Martinez Alcantara, Jose Eduardo"]
[Black "Kovalev, Vladislav"]
[WhiteFideId "3805662"]
[BlackFideId "13504398"]
[WhiteElo "2690"]
[BlackElo "2530"]
[Result "0-1"]
[Round "11"]
[TimeControl "180+1"]
[Date "2022.05.31"]
[WhiteClock "0:00:03"]
[BlackClock "0:00:10"]

1. e4 {[%clk 0:03:00]}  e5 {[%clk 0:02:58]} 2. Nf3 {[%clk 0:03:01]}  Nc6 {[%clk 0:02:58]} 3. Bb5 {[%clk 0:03:02]}  a6 {[%clk 0:02:58]} 4. Ba4 {[%clk 0:03:03]}  Nf6 {[%clk 0:02:57]} 5. d3 {[%clk 0:03:03]}  d6 {[%clk 0:02:56]} 6. c3 {[%clk 0:03:04]}  g6 {[%clk 0:02:56]} 7. h3 {[%clk 0:03:04]}  Bg7 {[%clk 0:02:57]} 8. Be3 {[%clk 0:03:05]}  O-O {[%clk 0:02:57]} 9. O-O {[%clk 0:03:05]}  Re8 {[%clk 0:02:53]} 10. Nbd2 {[%clk 0:03:05]}  h6 {[%clk 0:02:43]} 11. Re1 {[%clk 0:03:05]}  d5 {[%clk 0:02:40]} 12. a3 {[%clk 0:02:32]}  b5 {[%clk 0:01:56]} 13. Bc2 {[%clk 0:02:31]}  Nh5 {[%clk 0:01:57]} 14. exd5 {[%clk 0:02:13]}  Qxd5 {[%clk 0:01:58]} 15. Ne4 {[%clk 0:02:13]}  Be6 {[%clk 0:01:46]} 16. Nc5 {[%clk 0:02:10]}  Qd6 {[%clk 0:01:37]} 17. Nxe6 {[%clk 0:02:02]}  Qxe6 {[%clk 0:01:35]} 18. Bb3 {[%clk 0:01:59]}  Qd7 {[%clk 0:01:34]} 19. Qc2 {[%clk 0:01:46]}  Rad8 {[%clk 0:01:27]} 20. Rad1 {[%clk 0:01:46]}  Kh7 {[%clk 0:01:24]} 21. d4 {[%clk 0:01:24]}  e4 {[%clk 0:01:08]} 22. Ne5 {[%clk 0:01:22]}  Nxe5 {[%clk 0:01:00]} 23. dxe5 {[%clk 0:01:23]}  Qf5 {[%clk 0:00:45]} 24. Bc1 {[%clk 0:00:50]}  Rxd1 {[%clk 0:00:35]} 25. Qxd1 {[%clk 0:00:51]}  Nf4 {[%clk 0:00:16]} 26. Bxf4 {[%clk 0:00:17]}  Qxf4 {[%clk 0:00:17]} 27. g3 {[%clk 0:00:12]}  Qf5 {[%clk 0:00:10]} 28. Qg4 {[%clk 0:00:06]}  Qxg4 {[%clk 0:00:03]} 29. hxg4 {[%clk 0:00:07]}  Rxe5 {[%clk 0:00:03]} 30. Bxf7 {[%clk 0:00:07]}  e3 {[%clk 0:00:03]} 31. fxe3 {[%clk 0:00:07]}  Re7 {[%clk 0:00:03]} 32. Bd5 {[%clk 0:00:07]}  Bf6 {[%clk 0:00:04]} 33. Kf2 {[%clk 0:00:07]}  Kg7 {[%clk 0:00:05]} 34. Ra1 {[%clk 0:00:04]}  Be5 {[%clk 0:00:04]} 35. e4 {[%clk 0:00:04]}  a5 {[%clk 0:00:04]} 36. Rc1 {[%clk 0:00:03]}  c5 {[%clk 0:00:04]} 37. a4 {[%clk 0:00:02]}  b4 {[%clk 0:00:04]} 38. Rc2 {[%clk 0:00:03]}  bxc3 {[%clk 0:00:05]} 39. bxc3 {[%clk 0:00:03]}  Re8 {[%clk 0:00:05]} 40. Ke2 {[%clk 0:00:03]}  Rb8 {[%clk 0:00:05]} 41. Kd3 {[%clk 0:00:03]}  Kf6 {[%clk 0:00:05]} 42. Rf2+ {[%clk 0:00:03]}  Kg5 {[%clk 0:00:05]} 43. Kc4 {[%clk 0:00:04]}  Bxg3 {[%clk 0:00:04]} 44. Rf7 {[%clk 0:00:03]}  Be5 {[%clk 0:00:04]} 45. Ra7 {[%clk 0:00:03]}  Kxg4 {[%clk 0:00:04]} 46. Rxa5 {[%clk 0:00:04]}  h5 {[%clk 0:00:05]} 47. Ra6 {[%clk 0:00:05]}  g5 {[%clk 0:00:05]} 48. Rh6 {[%clk 0:00:04]}  h4 {[%clk 0:00:06]} 49. a5 {[%clk 0:00:05]}  Rb1 {[%clk 0:00:05]} 50. a6 {[%clk 0:00:05]}  Ra1 {[%clk 0:00:06]} 51. Kb5 {[%clk 0:00:03]}  Kg3 {[%clk 0:00:06]} 52. Rh7 {[%clk 0:00:02]}  c4 {[%clk 0:00:06]} 53. a7 {[%clk 0:00:02]}  g4 {[%clk 0:00:05]} 54. a8=Q {[%clk 0:00:03]}  Rxa8 {[%clk 0:00:05]} 55. Bxa8 {[%clk 0:00:04]}  h3 {[%clk 0:00:06]} 56. Bc6 {[%clk 0:00:03]}  Kf2 {[%clk 0:00:04]} 57. Bd7 {[%clk 0:00:03]}  Kf3 {[%clk 0:00:05]} 58. Kxc4 {[%clk 0:00:02]}  h2 {[%clk 0:00:05]} 59. Kd5 {[%clk 0:00:01]}  g3 {[%clk 0:00:05]} 60. Bf5 {[%clk 0:00:01]}  g2 {[%clk 0:00:05]} 61. Rxh2 {[%clk 0:00:01]}  g1=Q {[%clk 0:00:05]} 62. Rh3+ {[%clk 0:00:01]}  Bg3 {[%clk 0:00:06]} 63. Ke6 {[%clk 0:00:01]}  Qc5 {[%clk 0:00:06]} 64. Rh5 {[%clk 0:00:01]}  Kf4 {[%clk 0:00:06]} 65. Kf7 {[%clk 0:00:02]}  Qd6 {[%clk 0:00:06]} 66. Rh7 {[%clk 0:00:02]}  Qc7+ {[%clk 0:00:05]} 67. Kg6 {[%clk 0:00:02]}  Qxc3 {[%clk 0:00:06]} 68. Rf7 {[%clk 0:00:01]}  Bf2 {[%clk 0:00:07]} 69. Be6+ {[%clk 0:00:01]}  Kg3 {[%clk 0:00:07]} 70. Bf5 {[%clk 0:00:01]}  Bd4 {[%clk 0:00:07]} 71. Kh6 {[%clk 0:00:01]}  Be5 {[%clk 0:00:08]} 72. Kg6 {[%clk 0:00:01]}  Qc5 {[%clk 0:00:08]} 73. Kh5 {[%clk 0:00:02]}  Qd6 {[%clk 0:00:08]} 74. Rh7 {[%clk 0:00:02]}  Bf4 {[%clk 0:00:08]} 75. Rg7+ {[%clk 0:00:02]}  Kf3 {[%clk 0:00:08]} 76. Rg6 {[%clk 0:00:02]}  Qd2 {[%clk 0:00:06]} 77. Rg4 {[%clk 0:00:02]}  Qh2+ {[%clk 0:00:06]} 78. Rh4 {[%clk 0:00:02]}  Qb2 {[%clk 0:00:05]} 79. Rh3+ {[%clk 0:00:02]}  Bg3 {[%clk 0:00:06]} 80. Kg6 {[%clk 0:00:02]}  Qe5 {[%clk 0:00:06]} 81. Rh7 {[%clk 0:00:02]}  Qe8+ {[%clk 0:00:06]} 82. Rf7 {[%clk 0:00:02]}  Bf4 {[%clk 0:00:06]} 83. Kf6 {[%clk 0:00:02]}  Ke3 {[%clk 0:00:06]} 84. Re7 {[%clk 0:00:02]}  Qf8+ {[%clk 0:00:06]} 85. Ke6 {[%clk 0:00:02]}  Qh6+ {[%clk 0:00:06]} 86. Kd7 {[%clk 0:00:02]}  Qd6+ {[%clk 0:00:07]} 87. Ke8 {[%clk 0:00:03]}  Bg5 {[%clk 0:00:08]} 88. Re6 {[%clk 0:00:03]}  Qd8+ {[%clk 0:00:08]} 89. Kf7 {[%clk 0:00:04]}  Kf4 {[%clk 0:00:09]} 90. Kg6 {[%clk 0:00:04]}  Bh4 {[%clk 0:00:08]} 91. Kf7 {[%clk 0:00:04]}  Kg5 {[%clk 0:00:07]} 92. Rg6+ {[%clk 0:00:04]}  Kf4 {[%clk 0:00:07]} 93. Rg4+ {[%clk 0:00:05]}  Ke5 {[%clk 0:00:08]} 94. Rg6 {[%clk 0:00:05]}  Qc7+ {[%clk 0:00:08]} 95. Kg8 {[%clk 0:00:05]}  Bf6 {[%clk 0:00:09]} 96. Rg4 {[%clk 0:00:04]}  Qe7 {[%clk 0:00:09]} 97. Rg6 {[%clk 0:00:02]}  Qe8+ {[%clk 0:00:09]} 98. Kh7 {[%clk 0:00:03]}  Qh8# {[%clk 0:00:10]} 0-1


[Site "https://www.chess.com"]

[Event "Titled Tuesday Blitz May 31 Early 2022"]
[White "Milanovic, Marko"]
[Black "Maiorov, Nikita"]
[WhiteFideId "980129"]
[BlackFideId "13501720"]
[WhiteElo "2151"]
[BlackElo "2417"]
[Result "1-0"]
[Round "11"]
[TimeControl "180+1"]
[Date "2022.06.01"]
[WhiteClock "0:00:01"]
[BlackClock "0:00:02"]

1. e4 {[%clk 0:03:00]}  c6 {[%clk 0:02:58]} 2. d4 {[%clk 0:02:53]}  d5 {[%clk 0:02:57]} 3. Nd2 {[%clk 0:02:53]}  dxe4 {[%clk 0:02:56]} 4. Nxe4 {[%clk 0:02:53]}  Bf5 {[%clk 0:02:56]} 5. Ng3 {[%clk 0:02:50]}  Bg6 {[%clk 0:02:55]} 6. h4 {[%clk 0:02:49]}  h6 {[%clk 0:02:54]} 7. Nf3 {[%clk 0:02:49]}  Nd7 {[%clk 0:02:51]} 8. h5 {[%clk 0:02:45]}  Bh7 {[%clk 0:02:50]} 9. Bd3 {[%clk 0:02:46]}  Bxd3 {[%clk 0:02:49]} 10. Qxd3 {[%clk 0:02:47]}  e6 {[%clk 0:02:49]} 11. Bd2 {[%clk 0:02:43]}  Ngf6 {[%clk 0:02:48]} 12. O-O-O {[%clk 0:02:36]}  Be7 {[%clk 0:02:47]} 13. Ne4 {[%clk 0:02:36]}  Nxe4 {[%clk 0:02:47]} 14. Qxe4 {[%clk 0:02:37]}  Nf6 {[%clk 0:02:47]} 15. Qe2 {[%clk 0:02:35]}  Qd5 {[%clk 0:02:46]} 16. c4 {[%clk 0:02:34]}  Qe4 {[%clk 0:02:46]} 17. Be3 {[%clk 0:02:27]}  O-O {[%clk 0:02:40]} 18. Nd2 {[%clk 0:02:23]}  Qf5 {[%clk 0:02:39]} 19. f3 {[%clk 0:02:22]}  Rfd8 {[%clk 0:02:34]} 20. g4 {[%clk 0:02:21]}  Qa5 {[%clk 0:02:30]} 21. Kb1 {[%clk 0:02:20]}  e5 {[%clk 0:02:01]} 22. g5 {[%clk 0:02:01]}  hxg5 {[%clk 0:01:40]} 23. Bxg5 {[%clk 0:01:59]}  exd4 {[%clk 0:01:37]} 24. Qxe7 {[%clk 0:01:52]}  Qxg5 {[%clk 0:01:34]} 25. Rdg1 {[%clk 0:01:49]}  Qf5+ {[%clk 0:01:19]} 26. Ka1 {[%clk 0:01:33]}  Rd7 {[%clk 0:01:18]} 27. Qe1 {[%clk 0:01:30]}  Qf4 {[%clk 0:00:54]} 28. Rh4 {[%clk 0:01:15]}  Qh6 {[%clk 0:00:40]} 29. Qg3 {[%clk 0:01:10]}  Re8 {[%clk 0:00:36]} 30. f4 {[%clk 0:01:10]}  Re3 {[%clk 0:00:30]} 31. Nf3 {[%clk 0:01:07]}  d3 {[%clk 0:00:25]} 32. Qf2 {[%clk 0:01:04]}  Re2 {[%clk 0:00:23]} 33. Qf1 {[%clk 0:00:59]}  Ne4 {[%clk 0:00:19]} 34. Ne5 {[%clk 0:00:56]}  Rd4 {[%clk 0:00:15]} 35. Nxd3 {[%clk 0:00:50]}  Rd2 {[%clk 0:00:15]} 36. Ne5 {[%clk 0:00:47]}  Nf2 {[%clk 0:00:08]} 37. Ng4 {[%clk 0:00:21]}  Nxg4 {[%clk 0:00:06]} 38. Rhxg4 {[%clk 0:00:20]}  Kf8 {[%clk 0:00:06]} 39. a3 {[%clk 0:00:18]}  Qd6 {[%clk 0:00:05]} 40. Qf3 {[%clk 0:00:12]}  R4d3 {[%clk 0:00:04]} 41. Qe4 {[%clk 0:00:10]}  Rxa3+ {[%clk 0:00:04]} 42. Kb1 {[%clk 0:00:08]}  Rxb2+ {[%clk 0:00:03]} 43. Kxb2 {[%clk 0:00:07]}  Qb4+ {[%clk 0:00:04]} 44. Kc2 {[%clk 0:00:06]}  Ra2+ {[%clk 0:00:02]} 45. Kc1 {[%clk 0:00:01]} 1-0


[Site "https://www.chess.com"]